bitfinex/quotes_BTCUSD_20220109
["timestamp","ask_amount","ask_price","bid_price","bid_amount"]
[1641727998830,0.00073214,41861.0,41860.0,0.39769831]
[1641727999031,0.00166845,41867.0,41865.0,0.35539678]
[1641727999231,0.00166845,41867.0,41866.0,0.383693]
[1641727999833,0.00166845,41867.0,41866.0,0.483693]
[1641728000036,0.00166845,41867.0,41866.0,0.89210223]
[1641728000239,0.0003,41872.0,41866.0,0.89338141]
[1641728000436,0.0003,41872.0,41867.0,0.36141995]
[1641728000632,0.0003,41872.0,41867.0,1.751693]
[1641728001033,0.00084074,41868.0,41867.0,0.483693]
[1641728001634,0.00084074,41868.0,41867.0,0.493693]
[1641728002784,0.00084074,41868.0,41867.0,0.483693]
[1641728003580,0.00084074,41868.0,41867.0,0.517693]
[1641728003779,0.00084074,41868.0,41867.0,0.51845764]
[1641728004881,0.00084074,41868.0,41867.0,0.48445764]
[1641728005517,0.00082392,41868.0,41867.0,0.51245764]
[1641728006415,0.00123783,41868.0,41867.0,0.51245764]
[1641728006715,0.00082392,41868.0,41867.0,0.48445764]
[1641728007117,0.00082392,41868.0,41867.0,0.38445764]
[1641728007317,0.00082392,41868.0,41867.0,0.00076464]
[1641728007516,0.0008311,41868.0,41867.0,0.06376464]
[1641728008718,0.0008311,41868.0,41867.0,0.44745764]
[1641728008918,0.0008311,41868.0,41867.0,0.38445764]
[1641728009572,0.0008311,41868.0,41867.0,0.40145764]
[1641728009970,0.00083132,41868.0,41867.0,0.40145764]
[1641728010768,0.00083132,41868.0,41867.0,0.38445764]
[1641728011569,0.00083132,41868.0,41867.0,0.40945764]
[1641728012773,0.00083132,41868.0,41867.0,0.71926156]
[1641728013020,0.00083132,41868.0,41867.0,0.81926156]
[1641728013517,0.00083132,41868.0,41867.0,2.10326156]
[1641728013918,0.00125263,41868.0,41867.0,2.10326156]
[1641728014119,0.0003,41872.0,41868.0,0.443416]
[1641728014319,0.0003,41872.0,41869.0,0.74132642]
[1641728014517,0.0003,41872.0,41869.0,0.84132642]
[1641728015522,0.0003,41872.0,41869.0,0.85732642]
[1641728016969,0.0003,41872.0,41869.0,2.10932642]
[1641728017269,0.00010001,41870.0,41869.0,2.10932642]
[1641728017470,0.0001,41871.0,41869.0,2.17330642]
[1641728017670,0.0001,41871.0,41870.0,0.38493652]
[1641728017870,0.0003,41873.0,41870.0,1.76264952]
[1641728018076,0.0002,41873.0,41872.0,0.38494391]
[1641728018269,0.0002,41873.0,41872.0,1.65294391]
[1641728018474,0.0002,41873.0,41872.0,0.53494391]
[1641728018675,0.00062679,41873.0,41872.0,0.53494391]
[1641728019671,0.00062683,41873.0,41872.0,0.88844044]
[1641728020522,0.00042683,41873.0,41872.0,2.15644044]
[1641728020729,0.00702494,41879.0,41872.0,2.15644044]
[1641728020730,0.0001,41890.0,41877.0,1.268]
[1641728020926,0.0001,41890.0,41883.0,0.00121077]
[1641728021124,0.0001,41890.0,41883.0,0.38490377]
[1641728021523,0.0001,41890.0,41883.0,0.53490377]
[1641728021724,0.0001,41890.0,41883.0,0.55590377]
[1641728022824,0.0001,41890.0,41883.0,0.8835839]
[1641728023026,0.00052755,41884.0,41883.0,0.8835839]
[1641728023235,0.00052755,41884.0,41883.0,0.8823493]
[1641728023426,0.27136934,41897.0,41886.0,0.059705]
[1641728023629,0.27261832,41897.0,41889.0,0.059709]
[1641728024274,0.27261832,41897.0,41886.0,0.32636782]
[1641728024470,0.00124898,41897.0,41891.0,0.059708]
[1641728024669,0.00124898,41897.0,41888.0,0.119415]
[1641728024870,0.00124898,41897.0,41892.0,0.059705]
[1641728025171,0.0001,41898.0,41889.0,0.42360178]
[1641728025370,0.0001,41898.0,41890.0,0.409113]
[1641728025572,0.0001,41898.0,41893.0,0.179083]
[1641728025774,0.0001,41898.0,41894.0,0.383693]
[1641728025970,0.0001,41898.0,41894.0,0.059701]
[1641728026171,0.0001,41898.0,41892.0,0.138399]
[1641728026172,0.28929889,41896.0,41892.0,0.019]
[1641728026372,0.361333,41896.0,41892.0,0.019]
[1641728026771,0.361333,41896.0,41888.0,0.05970847]
[1641728026772,0.33620178,41895.0,41885.0,0.11941423]
[1641728026971,0.32376269,41894.0,41883.0,0.00070495]
[1641728027572,0.31876269,41894.0,41883.0,0.06370495]
[1641728027772,0.31876269,41894.0,41884.0,0.05971462]
[1641728028017,0.31876269,41894.0,41886.0,0.3278045]
[1641728028616,0.31679372,41894.0,41886.0,0.3278045]
[1641728029221,0.31179372,41894.0,41886.0,0.3278045]
[1641728029418,0.31179372,41894.0,41885.0,0.00070398]
[1641728029619,0.35,41893.0,41886.0,0.116717]
[1641728029821,0.35,41893.0,41886.0,0.057]
[1641728029822,0.48450057,41892.0,41886.0,0.057]
[1641728030021,0.00125732,41890.0,41886.0,0.057]
[1641728030622,0.059727,41889.0,41886.0,0.057]
[1641728030821,0.36395021,41888.0,41885.0,0.00113747]
[1641728031024,0.48341421,41888.0,41885.0,0.00113747]
[1641728031220,0.71794424,41886.0,41885.0,0.00113747]
[1641728031424,1.07204213,41886.0,41885.0,0.00113747]
[1641728031620,1.07204213,41886.0,41885.0,0.00313747]
[1641728031868,1.07204213,41886.0,41885.0,0.00357096]
[1641728032068,1.07204213,41886.0,41885.0,0.00313747]
[1641728032868,1.07204213,41886.0,41885.0,0.00113747]
[1641728034068,0.71794424,41886.0,41885.0,0.00113747]
[1641728034873,1.03384347,41886.0,41885.0,0.00113747]
[1641728035520,1.03384347,41886.0,41885.0,0.00157096]
[1641728035721,1.03384347,41886.0,41885.0,0.00113747]
[1641728036121,1.03384347,41886.0,41885.0,0.0015595]
[1641728036522,1.03384347,41886.0,41885.0,0.00112601]
[1641728037122,1.03384347,41886.0,41885.0,0.00112772]
[1641728037724,1.38384347,41886.0,41885.0,0.00112772]
[1641728037923,1.38384347,41886.0,41875.0,0.00128399]
[1641728037924,0.059737,41881.0,41875.0,0.00128399]
[1641728038126,1.32194347,41886.0,41870.0,0.119467]
[1641728038127,0.34406015,41880.0,41870.0,0.119467]
[1641728038325,0.44406015,41880.0,41868.0,0.000696]
[1641728038725,0.33056584,41872.0,41868.0,0.000696]
[1641728038928,0.31196251,41871.0,41868.0,0.000696]
[1641728039590,0.31196251,41871.0,41868.0,0.052696]
[1641728040190,0.37171351,41871.0,41868.0,0.052696]
[1641728040591,0.31196251,41871.0,41869.0,0.00042412]
[1641728040991,1.99946225,41875.0,41869.0,0.00042412]
[1641728040992,0.33287034,41874.0,41869.0,0.00042412]
[1641728041193,0.33287034,41874.0,41871.0,0.059737]
[1641728041600,0.34687034,41874.0,41871.0,0.059737]
[1641728042195,0.34687034,41874.0,41869.0,0.00742411]
[1641728042394,0.34687034,41874.0,41871.0,0.059739]
[1641728042595,0.34687034,41874.0,41872.0,0.00042409]
[1641728042793,0.014,41874.0,41872.0,0.00042409]
[1641728043023,0.34328997,41877.0,41872.0,0.00042409]
[1641728043417,0.34328997,41877.0,41872.0,0.06015809]
[1641728043618,0.35428997,41877.0,41873.0,0.059735]
[1641728043817,0.35428997,41877.0,41874.0,0.000423]
[1641728044222,0.011,41877.0,41874.0,0.000423]
[1641728044623,0.011,41877.0,41874.0,0.060155]
[1641728044820,0.30148529,41879.0,41875.0,0.00042299]
[1641728045622,0.32748529,41879.0,41875.0,0.00242299]
[1641728046024,0.32748529,41879.0,41876.0,0.00042298]
[1641728046874,0.30148529,41879.0,41876.0,0.00042298]
[1641728047067,0.30148529,41879.0,41877.0,0.00042297]
[1641728047670,0.30148529,41879.0,41877.0,0.00842297]
[1641728048069,0.30148529,41879.0,41877.0,0.00884596]
[1641728048271,0.30148529,41879.0,41877.0,0.00842299]
[1641728048671,0.30148529,41879.0,41878.0,0.00071218]
[1641728050526,0.30148529,41879.0,41878.0,0.00113516]
[1641728051728,0.59676291,41879.0,41878.0,0.00113516]
[1641728051930,0.29915918,41879.0,41878.0,0.00113516]
[1641728052331,0.29440022,41879.0,41878.0,0.00113516]
[1641728052530,0.29440022,41879.0,41878.0,0.00155814]
[1641728052729,0.29440022,41879.0,41878.0,0.00113516]
[1641728053933,0.29607769,41879.0,41878.0,0.00113516]
[1641728054370,3.63228846,41880.0,41878.0,0.00113516]
[1641728054672,0.55069923,41879.0,41878.0,0.00113516]
[1641728054970,3.63228846,41880.0,41878.0,0.00113516]
[1641728055371,0.65392181,41879.0,41878.0,0.00113516]
[1641728055769,0.65313839,41879.0,41878.0,0.00155814]
[1641728055969,0.65313839,41879.0,41878.0,0.00113516]
[1641728056169,0.65486892,41879.0,41878.0,0.00113516]
[1641728056371,0.35824699,41879.0,41878.0,0.00113516]
[1641728057071,0.66079281,41879.0,41878.0,0.00113516]
[1641728057672,0.66079281,41879.0,41878.0,0.01313516]
[1641728058419,0.35824699,41879.0,41878.0,0.01313516]
[1641728058821,0.65224875,41879.0,41878.0,0.00113516]
[1641728059020,0.35824699,41879.0,41878.0,0.00113516]
[1641728059220,0.6549237,41879.0,41878.0,0.00113516]
[1641728060023,3.69202646,41880.0,41878.0,0.00113516]
[1641728060220,3.63228846,41880.0,41878.0,0.00113516]
[1641728061622,3.64028846,41880.0,41878.0,0.01613516]
[1641728062076,0.2809401,41880.0,41878.0,0.01613516]
[1641728062273,0.20888,41880.0,41878.0,0.01613516]
[1641728062473,0.008,41880.0,41878.0,0.01613516]
[1641728062973,0.00124888,41883.0,41878.0,0.00113516]
[1641728063576,0.00124888,41883.0,41879.0,0.059727]
[1641728063775,0.043,41883.0,41879.0,0.059727]
[1641728064677,0.043,41883.0,41880.0,0.00042296]
[1641728064976,0.043,41883.0,41881.0,0.088012]
[1641728065620,0.29329943,41888.0,41883.0,0.059721]
[1641728065922,0.00129943,41888.0,41884.0,0.05972]
[1641728067322,0.71623,41887.0,41885.0,0.34821421]
[1641728068622,0.71623,41887.0,41886.0,0.00070701]
[1641728069679,0.76223,41887.0,41886.0,0.00870701]
[1641728070878,0.71623,41887.0,41886.0,0.00070701]
[1641728071677,0.72623,41887.0,41886.0,0.01570701]
[1641728072880,0.71623,41887.0,41886.0,0.00070701]
[1641728073616,0.72223,41887.0,41886.0,0.014]
[1641728075018,0.71623,41887.0,41885.0,0.06042401]
[1641728075619,0.72623,41887.0,41885.0,0.08342401]
[1641728076221,0.72623,41887.0,41885.0,0.02370701]
[1641728076876,0.71623,41887.0,41885.0,0.00070701]
[1641728077678,0.72423,41887.0,41885.0,0.04070701]
[1641728078377,0.4395213,41886.0,41885.0,0.04070701]
[1641728078978,0.4395213,41886.0,41885.0,0.00070701]
[1641728079779,0.4395213,41886.0,41885.0,0.04070701]
[1641728079780,0.4475213,41886.0,41885.0,0.04070701]
[1641728081025,0.4395213,41886.0,41885.0,0.00070701]
[1641728081721,0.4485213,41886.0,41885.0,0.03670701]
[1641728083024,0.4395213,41886.0,41885.0,0.00070701]
[1641728083624,0.4475213,41886.0,41885.0,0.028]
[1641728084574,1.1637513,41886.0,41885.0,0.028]
[1641728084973,0.72423,41886.0,41883.0,0.17987137]
[1641728085176,0.71623,41886.0,41883.0,0.17987137]
[1641728085373,0.71623,41886.0,41883.0,0.12015166]
[1641728085575,0.71623,41886.0,41883.0,0.06043066]
[1641728085774,0.72323,41886.0,41883.0,0.09843066]
[1641728085975,0.72323,41886.0,41883.0,0.03870766]
[1641728086576,1.05226397,41886.0,41883.0,0.03870766]
[1641728086976,0.36876822,41885.0,41883.0,0.00070766]
[1641728087178,0.37104408,41884.0,41883.0,0.00070766]
[1641728087776,0.38004408,41884.0,41883.0,0.03970766]
[1641728089028,0.37104408,41884.0,41883.0,0.00070766]
[1641728089325,0.75780642,41884.0,41883.0,0.00070766]
[1641728089725,0.76680642,41884.0,41883.0,0.03670766]
[1641728090126,1.58303642,41884.0,41883.0,0.03670766]
[1641728090925,1.57403642,41884.0,41883.0,0.00070766]
[1641728091629,1.58603642,41884.0,41883.0,0.00070766]
[1641728092083,1.48603642,41884.0,41883.0,0.00070766]
[1641728092283,1.58053642,41884.0,41883.0,0.00070766]
[1641728092483,1.68053642,41884.0,41883.0,0.00070766]
[1641728092884,1.66853642,41884.0,41883.0,0.00070766]
[1641728093283,1.76853642,41884.0,41883.0,0.00070766]
[1641728093683,1.76853642,41884.0,41880.0,0.00113191]
[1641728093684,0.059741,41883.0,41880.0,0.00113191]
[1641728093883,2.49542744,41881.0,41880.0,0.00113191]
[1641728094084,3.34345992,41881.0,41880.0,0.00113191]
[1641728094485,3.34345992,41881.0,41880.0,0.00155487]
[1641728095188,3.34345992,41881.0,41880.0,0.00113191]
[1641728095385,3.34345992,41881.0,41880.0,0.00155487]
[1641728095622,3.35545992,41881.0,41880.0,0.00113191]
[1641728096927,3.34345992,41881.0,41880.0,0.00113191]
[1641728097124,3.59469509,41881.0,41880.0,0.00113191]
[1641728097324,0.0012793,41875.0,41868.0,0.000696]
[1641728097525,0.17925858,41872.0,41868.0,0.000696]
[1641728097723,0.42744377,41870.0,41868.0,0.000696]
[1641728097922,0.31727605,41869.0,41868.0,0.000696]
[1641728098423,0.68349181,41869.0,41868.0,0.000696]
[1641728098826,0.68349181,41869.0,41868.0,0.00111062]
[1641728100278,0.36621576,41869.0,41868.0,0.00111062]
[1641728102083,0.36621576,41869.0,41868.0,0.00153284]
[1641728102280,1.08244576,41869.0,41868.0,0.00111822]
[1641728102879,1.4041137,41869.0,41868.0,0.00111822]
[1641728103725,1.4041137,41869.0,41868.0,0.00201895]
[1641728104325,1.4041137,41869.0,41868.0,0.00244117]
[1641728104524,1.4041137,41869.0,41868.0,0.00201895]
[1641728104925,1.08244576,41869.0,41868.0,0.00201895]
[1641728106526,1.08244576,41869.0,41868.0,0.00201878]
[1641728106776,1.40226482,41869.0,41868.0,0.00201878]
[1641728107379,1.68604288,41869.0,41868.0,0.00201878]
[1641728107577,1.68604288,41869.0,41868.0,0.00244083]
[1641728107778,1.69904288,41869.0,41868.0,0.00201878]
[1641728107977,1.43897282,41869.0,41868.0,0.00201878]
[1641728108979,1.42597282,41869.0,41868.0,0.00201878]
[1641728109679,1.43997282,41869.0,41868.0,0.00201878]
[1641728111823,1.45197282,41869.0,41868.0,0.00201878]
[1641728112523,1.45322838,41869.0,41868.0,0.00201878]
[1641728112719,1.45322838,41869.0,41868.0,0.12758878]
[1641728112924,1.52172838,41869.0,41868.0,0.12758878]
[1641728113122,1.52172838,41869.0,41868.0,0.12801083]
[1641728113320,1.52172838,41869.0,41868.0,0.12758878]
[1641728113720,1.53872838,41869.0,41868.0,0.12758878]
[1641728114121,1.88872838,41869.0,41860.0,0.013234]
[1641728114382,0.059764,41863.0,41860.0,0.013234]
[1641728114580,0.0945,41862.0,41860.0,0.013234]
[1641728114781,0.81073,41862.0,41860.0,0.013234]
[1641728115379,0.81073,41862.0,41860.0,0.01365613]
[1641728115780,0.82858247,41861.0,41860.0,0.01365613]
[1641728115980,0.38834747,41861.0,41860.0,0.01365613]
[1641728116380,0.77367272,41861.0,41860.0,0.01407826]
[1641728116584,0.77367272,41861.0,41860.0,0.01365613]
[1641728117484,0.77367272,41861.0,41860.0,0.01407826]
[1641728117686,0.77767272,41861.0,41860.0,0.01365613]
[1641728118724,0.87767272,41861.0,41860.0,0.01433943]
[1641728118927,0.92767272,41861.0,41860.0,0.01433943]
[1641728119125,4.50133847,41861.0,41860.0,0.01433943]
[1641728119324,5.21756847,41861.0,41860.0,0.01433943]
[1641728119725,5.33156847,41861.0,41860.0,0.01433838]
[1641728120127,0.00128763,41852.0,41843.0,0.000696]
[1641728120329,0.06105012,41847.0,41843.0,0.000696]
[1641728120525,0.36054425,41846.0,41843.0,0.000696]
[1641728120927,0.26115903,41844.0,41843.0,0.000696]
[1641728121227,0.97988091,41844.0,41843.0,0.000696]
[1641728121631,0.97888091,41844.0,41843.0,0.000696]
[1641728121877,1.70311091,41844.0,41843.0,0.000696]
[1641728122075,2.05311091,41844.0,41843.0,0.000696]
[1641728122477,1.44295188,41844.0,41843.0,0.000696]
[1641728122880,1.79295188,41844.0,41843.0,0.000696]
[1641728123076,1.78495188,41844.0,41843.0,0.000696]
[1641728123276,1.87945188,41844.0,41843.0,0.000696]
[1641728123475,2.10728697,41844.0,41843.0,0.000696]
[1641728123777,2.51508697,41844.0,41843.0,0.00122497]
[1641728124375,2.51508697,41844.0,41843.0,0.00165467]
[1641728124976,2.50608697,41844.0,41843.0,0.00165467]
[1641728125724,2.51608697,41844.0,41843.0,0.00165467]
[1641728125919,2.21178697,41844.0,41843.0,0.00165467]
[1641728126520,2.11728697,41844.0,41843.0,0.00165467]
[1641728127121,2.10728697,41844.0,41843.0,0.00165467]
[1641728127723,2.11528697,41844.0,41843.0,0.00165467]
[1641728128625,0.72423,41844.0,41843.0,0.00165467]
[1641728128824,0.72423,41844.0,41843.0,0.00164496]
[1641728129025,0.71623,41844.0,41843.0,0.00164496]
[1641728129876,0.2817,41848.0,41844.0,0.09346204]
[1641728130077,1.71127186,41850.0,41846.0,0.26077947]
[1641728130275,1.71127186,41850.0,41844.0,0.059775]
[1641728130477,1.71127186,41850.0,41843.0,0.00164522]
[1641728130679,0.61927186,41850.0,41843.0,0.00164522]
[1641728130875,0.61927186,41850.0,41847.0,0.0004202]
[1641728131077,1.05295459,41849.0,41847.0,0.0004202]
[1641728131276,0.45978,41848.0,41847.0,0.0004202]
[1641728131577,0.77665,41848.0,41847.0,0.0004202]
[1641728131876,0.72487,41848.0,41847.0,0.0004202]
[1641728132076,0.72487,41848.0,41847.0,0.00042021]
[1641728133123,0.71687,41848.0,41847.0,0.00042021]
[1641728133520,0.71687,41848.0,41847.0,0.00084034]
[1641728133719,0.72387,41848.0,41847.0,0.00136543]
[1641728135019,0.71687,41848.0,41847.0,0.00136543]
[1641728135322,0.71687,41848.0,41847.0,0.60094522]
[1641728135523,0.71687,41848.0,41847.0,0.98463822]
[1641728135719,0.72187,41848.0,41847.0,0.98505834]
[1641728135921,0.72187,41848.0,41847.0,0.98463821]
[1641728136120,0.72187,41848.0,41847.0,0.38463821]
[1641728136524,0.00279351,41854.0,41850.0,0.119507]
[1641728136771,0.00279351,41854.0,41852.0,0.05975127]
[1641728137073,0.00279351,41854.0,41853.0,0.433693]
[1641728137472,0.013234,41860.0,41856.0,0.059752]
[1641728137674,0.013234,41860.0,41859.0,0.00123859]
[1641728137873,0.013234,41860.0,41859.0,0.52798189]
[1641728138477,0.013234,41860.0,41859.0,0.83526395]
[1641728139274,0.013234,41860.0,41859.0,0.83402536]
[1641728139773,0.013234,41860.0,41859.0,0.1600503]
[1641728139973,0.013234,41860.0,41859.0,0.5437433]
[1641728140928,0.013234,41860.0,41859.0,0.87254157]
[1641728141124,0.013234,41860.0,41859.0,0.85554157]
[1641728141522,0.013234,41860.0,41859.0,0.91528857]
[1641728141721,0.013234,41860.0,41859.0,0.94328857]
[1641728142923,0.013234,41860.0,41859.0,0.88354157]
[1641728143124,0.013234,41860.0,41859.0,0.85554157]
[1641728143927,0.013234,41860.0,41859.0,1.56613479]
[1641728144270,0.013234,41860.0,41859.0,1.24251919]
[1641728144477,0.00042021,41865.0,41860.0,1.268]
[1641728144673,0.00042021,41865.0,41864.0,0.38495109]
[1641728144877,2.617843,41884.0,41865.0,0.383693]
[1641728144878,0.4763,41883.0,41865.0,0.383693]
[1641728145070,0.4763,41883.0,41874.0,0.00121104]
[1641728145071,0.1945,41883.0,41874.0,0.00121104]
[1641728145271,0.71638,41879.0,41874.0,0.16219104]
[1641728145673,0.71638,41879.0,41874.0,0.21219104]
[1641728145875,0.71638,41879.0,41876.0,0.059723]
[1641728146773,0.71638,41879.0,41877.0,0.11944646]
[1641728148021,0.71638,41879.0,41877.0,0.18716746]
[1641728148423,0.71238,41879.0,41877.0,0.18716746]
[1641728148624,0.71280861,41879.0,41877.0,0.18716746]
[1641728148824,0.71280861,41879.0,41878.0,0.0006502]
[1641728149822,0.71279661,41879.0,41878.0,0.0076502]
[1641728151022,0.71279661,41879.0,41878.0,0.0006502]
[1641728151869,0.71279661,41879.0,41878.0,0.0096502]
[1641728152070,0.71279661,41879.0,41878.0,0.33663865]
[1641728152269,0.71279661,41879.0,41878.0,0.39463319]
[1641728153073,0.71279661,41879.0,41878.0,0.00194019]
[1641728153270,0.71279661,41879.0,41878.0,0.0006502]
[1641728153770,0.71279661,41879.0,41877.0,0.12009666]
[1641728153970,0.71279661,41879.0,41878.0,0.014]
[1641728154175,0.71279769,41879.0,41878.0,0.014]
[1641728155625,0.71279769,41879.0,41877.0,0.0006502]
[1641728155827,0.71279769,41879.0,41878.0,0.013]
[1641728156530,0.71279768,41879.0,41878.0,0.013]
[1641728157125,0.71279768,41879.0,41877.0,0.0006502]
[1641728157524,0.71279769,41879.0,41877.0,0.0006502]
[1641728157928,0.71279769,41879.0,41877.0,0.0116502]
[1641728158528,0.71267123,41879.0,41877.0,0.0116502]
[1641728158731,0.71267116,41879.0,41877.0,0.0116502]
[1641728159128,0.71267116,41879.0,41877.0,0.0006502]
[1641728159777,0.71267117,41879.0,41877.0,0.0006502]
[1641728159978,0.71267117,41879.0,41877.0,0.0086502]
[1641728161178,0.71267117,41879.0,41877.0,0.0006502]
[1641728161997,0.71267117,41879.0,41877.0,0.0116502]
[1641728162179,0.71267117,41879.0,41877.0,0.0713772]
[1641728162881,0.71267117,41879.0,41878.0,0.383693]
[1641728163127,0.71267117,41879.0,41877.0,0.0713772]
[1641728163327,0.71267117,41879.0,41877.0,0.36765873]
[1641728163726,0.71267117,41879.0,41877.0,0.35665873]
[1641728163927,0.71267117,41879.0,41877.0,0.36565873]
[1641728164126,0.71267117,41879.0,41877.0,0.0693772]
[1641728164929,0.68267117,41879.0,41877.0,0.18881599]
[1641728165127,0.68267117,41879.0,41878.0,0.44341104]
[1641728165327,0.68267117,41879.0,41878.0,0.76450365]
[1641728165928,0.68267117,41879.0,41878.0,0.77250365]
[1641728166226,0.68267117,41879.0,41878.0,0.83222365]
[1641728167780,0.68267117,41879.0,41878.0,0.82422365]
[1641728167980,0.68267117,41879.0,41878.0,0.83222365]
[1641728168579,0.68267117,41879.0,41878.0,0.83287385]
[1641728169184,0.68267117,41879.0,41878.0,0.82487385]
[1641728169581,0.68267117,41879.0,41878.0,0.44406124]
[1641728169982,0.68267117,41879.0,41878.0,0.06836824]
[1641728171325,0.68267117,41879.0,41878.0,0.06036824]
[1641728171926,0.68267117,41879.0,41878.0,0.06736824]
[1641728172328,1.02051529,41879.0,41878.0,0.0076502]
[1641728172527,0.94091533,41879.0,41878.0,0.0076502]
[1641728173126,0.68267117,41879.0,41878.0,0.0006502]
[1641728173730,0.68267117,41879.0,41877.0,0.11945379]
[1641728173929,0.68267117,41879.0,41878.0,0.005]
[1641728174126,0.68267117,41879.0,41878.0,0.26625117]
[1641728175179,0.68267117,41879.0,41878.0,0.26747691]
[1641728175378,0.68267117,41879.0,41878.0,1.03685376]
[1641728175779,0.68267117,41879.0,41878.0,1.03185376]
[1641728175978,0.68267117,41879.0,41878.0,1.10357376]
[1641728177179,0.68267117,41879.0,41878.0,1.09157376]
[1641728177580,0.68267117,41879.0,41878.0,0.70588991]
[1641728178024,0.68267117,41879.0,41878.0,0.72188991]
[1641728178429,0.68267117,41879.0,41878.0,1.04746835]
[1641728178625,0.68267117,41879.0,41878.0,1.09811855]
[1641728178824,0.68267117,41879.0,41878.0,0.77254011]
[1641728179224,0.68267117,41879.0,41878.0,0.75654011]
[1641728179927,0.68267117,41879.0,41878.0,1.09148781]
[1641728181128,0.68267117,41879.0,41878.0,0.75654011]
[1641728181429,0.68267117,41879.0,41878.0,1.08124846]
[1641728181628,0.68267117,41879.0,41878.0,0.7566098]
[1641728181880,0.68267117,41879.0,41878.0,0.7696098]
[1641728182176,0.68267117,41879.0,41878.0,1.09408983]
[1641728183276,0.68267117,41879.0,41878.0,1.08108983]
[1641728183677,0.68267117,41879.0,41878.0,0.7566098]
[1641728183877,0.68267117,41879.0,41878.0,1.09349436]
[1641728184077,0.68267117,41879.0,41878.0,2.36149436]
[1641728184277,0.6830888,41879.0,41878.0,2.36149436]
[1641728184982,0.6830888,41879.0,41878.0,0.7676098]
[1641728185180,0.35348158,41885.0,41879.0,0.1313113]
[1641728185379,0.35348158,41885.0,41881.0,0.17915671]
[1641728185628,0.0001,41886.0,41880.0,0.119438]
[1641728186028,0.0001,41886.0,41881.0,0.007]
[1641728186629,0.0001,41886.0,41883.0,0.05971781]
[1641728187031,0.0001,41886.0,41882.0,0.11942951]
[1641728187729,0.0001,41886.0,41884.0,0.05971476]
[1641728187929,0.0001,41886.0,41884.0,0.17913094]
[1641728188331,0.0001,41886.0,41885.0,0.28734429]
[1641728188534,0.0001,41886.0,41885.0,0.54274168]
[1641728188730,0.0001,41886.0,41885.0,1.316853]
[1641728189279,0.00052381,41886.0,41885.0,1.316853]
[1641728189881,0.00052381,41886.0,41885.0,1.324853]
[1641728190278,0.00052756,41886.0,41885.0,1.374853]
[1641728191179,0.00052756,41886.0,41885.0,1.466853]
[1641728191878,0.00052756,41886.0,41885.0,2.746853]
[1641728192079,0.00052756,41886.0,41885.0,2.646853]
[1641728192278,0.00052756,41886.0,41885.0,1.37892269]
[1641728193127,0.00052756,41886.0,41885.0,1.36692269]
[1641728193527,0.00051427,41886.0,41885.0,1.36692269]
[1641728193728,0.00051427,41886.0,41885.0,1.36756611]
[1641728193927,0.00051427,41886.0,41885.0,1.05085679]
[1641728194530,0.00051427,41886.0,41885.0,1.377113]
[1641728194830,0.00051427,41886.0,41885.0,1.05085679]
[1641728195031,0.00051427,41886.0,41885.0,0.6538035]
[1641728195233,0.00051427,41886.0,41885.0,0.6898035]
[1641728195431,0.00051427,41886.0,41885.0,0.6398035]
[1641728195630,0.00051427,41886.0,41885.0,0.96559748]
[1641728196029,0.00051427,41886.0,41885.0,1.23456933]
[1641728196631,0.00051427,41886.0,41885.0,1.29427333]
[1641728197683,0.00051427,41886.0,41885.0,1.28227333]
[1641728197886,0.00051427,41886.0,41885.0,1.29227333]
[1641728198085,0.00051476,41886.0,41885.0,1.29227333]
[1641728199086,0.00051476,41886.0,41885.0,2.55027333]
[1641728199887,0.00051476,41886.0,41885.0,2.56227333]
[1641728200287,0.00051476,41886.0,41885.0,2.61227333]
[1641728201130,0.00051476,41886.0,41885.0,2.60027333]
[1641728201930,0.00051476,41886.0,41885.0,2.61427333]
[1641728202331,0.00051474,41886.0,41885.0,1.02047935]
[1641728202531,0.00051474,41886.0,41885.0,1.34637979]
[1641728203930,0.00051474,41886.0,41885.0,1.34837979]
[1641728204132,0.00051474,41886.0,41885.0,2.61637979]
[1641728205285,0.00051474,41886.0,41885.0,2.70037979]
[1641728205888,0.00031001,41887.0,41885.0,2.70037979]
[1641728206187,0.00031001,41887.0,41886.0,0.433693]
[1641728206385,0.00031001,41887.0,41886.0,2.03853968]
[1641728207186,0.00031001,41887.0,41886.0,2.03975018]
[1641728208029,0.00031001,41887.0,41886.0,2.05075018]
[1641728208632,0.00031001,41887.0,41886.0,2.05139263]
[1641728209932,0.00031001,41887.0,41886.0,2.05239263]
[1641728210133,0.00031001,41887.0,41886.0,1.71554595]
[1641728211535,0.00031001,41887.0,41886.0,1.70354595]
[1641728211983,0.00031001,41887.0,41886.0,1.71554595]
[1641728212384,0.00031001,41887.0,41886.0,1.71561564]
[1641728213288,0.00031001,41887.0,41886.0,1.70361564]
[1641728213486,0.00031001,41887.0,41886.0,1.69861564]
[1641728213986,0.00031001,41887.0,41886.0,1.71261564]
[1641728215187,0.00031001,41887.0,41886.0,1.69861564]
[1641728216031,0.00031001,41887.0,41886.0,1.70961564]
[1641728216233,0.0001,41887.0,41886.0,1.70961564]
[1641728217333,0.00031001,41888.0,41886.0,1.75830964]
[1641728217532,0.00031001,41888.0,41886.0,1.81800664]
[1641728217933,0.00031001,41888.0,41886.0,1.83100664]
[1641728219376,0.00031001,41888.0,41886.0,1.81800664]
[1641728219973,0.00031001,41888.0,41887.0,1.65297488]
[1641728221977,0.00031001,41888.0,41887.0,1.66497488]
[1641728223326,0.00031001,41888.0,41887.0,1.65297488]
[1641728223727,0.00031001,41888.0,41887.0,1.65361637]
[1641728224126,0.00031001,41888.0,41887.0,1.66861637]
[1641728225228,0.00031001,41888.0,41887.0,1.65361637]
[1641728226034,0.00031001,41888.0,41887.0,1.66461637]
[1641728227686,0.00031001,41888.0,41887.0,1.66468606]
[1641728227886,0.00031001,41888.0,41887.0,1.65368606]
[1641728228085,0.00031001,41888.0,41887.0,1.66768606]
[1641728228486,0.00031001,41889.0,41887.0,1.66768606]
[1641728228690,0.00031001,41889.0,41887.0,1.72738306]
[1641728228887,0.00031001,41889.0,41887.0,1.77738306]
[1641728229287,0.00031001,41889.0,41887.0,1.76338306]
[1641728229986,0.00021001,41889.0,41887.0,1.77638306]
[1641728230188,0.00021001,41889.0,41887.0,0.50838306]
[1641728230390,0.00021001,41889.0,41887.0,0.50710118]
[1641728231237,0.00021001,41889.0,41887.0,0.49410118]
[1641728232035,0.00021001,41889.0,41887.0,0.50410118]
[1641728232640,0.34583866,41897.0,41892.0,0.28123478]
[1641728233640,0.34583866,41897.0,41892.0,0.6071517]
[1641728233839,0.34583866,41897.0,41892.0,0.6668567]
[1641728234037,0.34583866,41897.0,41892.0,0.6738567]
[1641728235887,0.34583866,41897.0,41892.0,0.6668567]
[1641728236086,0.34583866,41897.0,41892.0,0.6738567]
[1641728236288,0.34583866,41897.0,41892.0,0.34793978]